[Event "GER-ch Youth U18 2019"]
[Site "Willingen"]
[Date "2019.06.09"]
[Round "2.11"]
[White "Lange, Jannis"]
[Black "Goldbeck, Lars"]
[Result "0-1"]
[ECO "B51"]
[WhiteElo "2024"]
[BlackElo "2199"]
[Annotator "NA"]
[PlyCount "66"]
[EventDate "2019.06.07"]
[EventType "swiss"]
[EventRounds "9"]
[EventCountry "GER"]
[SourceTitle "playchess.com"]
[Source "ChessBase"]
[SourceQuality "1"]
[TimeControl "40/5400+30:1800+30"]

1. e4 {[%emt 0:00:00]} c5 {[%emt 0:00:00]} 2. Nf3 {[%emt 0:00:00]} d6 {[%emt 0:00:00]} 3. Bb5+ {[%emt 0:00:00]} Nd7 {[%emt 0:00:00]} 4. O-O {[%emt 0:00:17]} a6 {[%emt 0:00:00]} 5. Bxd7+ {[%emt 0:00:09]} Bxd7 {[%emt 0:00:00]} 6. d4 {[%emt 0:00:08]} cxd4 {[%emt 0:00:00]} 7. Qxd4 {[%emt 0:00:04]} e5 {[%emt 0:00:05]} 8. Qd3 {[%emt 0:00:57]} Rc8 {[%emt 0:00:06]} 9. Nc3 {[%emt 0:19:08]} h6 {[%emt 0:01:23]} 10. a4 {[%emt 0:00:53]} Nf6 {[%emt 0:00:06]} 11. Rd1 {[%emt 0:05:45]} Be7 {[%emt 0:01:24]} 12. a5 {[%emt 0:00:24]} O-O {[%emt 0:04:37]} 13. Be3 {[%emt 0:04:36]} Be6 {[%emt 0:01:26]} 14. Nd2 {[%emt 0:09:58]} d5 {[%emt 0:07:33]} 15. Bb6 {[%emt 0:08:47]} Qd7 {[%emt 0:00:02]} 16. exd5 {[%emt 0:01:31]} Nxd5 {[%emt 0:00:05]} 17. Nxd5 {[%emt 0:00:22]} Qxd5 {[%emt 0:00:04]} 18. Qxd5 {[%emt 0:00:28]} Bxd5 {[%emt 0:00:02]} 19. Nf1 {[%emt 0:00:37]} Be6 {[%emt 0:01:01]} 20. Ne3 {[%emt 0:04:21]} Bg5 {[%emt 0:06:02]} 21. Rd2 {[%emt 0:05:59]} f5 {[%emt 0:02:10]} 22. Rd6 {[%emt 0:02:15]} Kf7 {[%emt 0:00:55]} 23. c3 {[%emt 0:03:21]} Ke7 {[%emt 0:25:20]} 24. Rd3 {[%emt 0:22:39]} e4 {[%emt 0:06:40]} 25. Rd4 {[%emt 0:01:36]} Kf7 {[%emt 0:01:39]} 26. Nd5 {[%emt 0:03:04]} Rc6 {[%emt 0:01:38]} 27. Nb4 {[%emt 0:02:51]} Rc4 {[%emt 0:00:31]} 28. Rad1 {[%emt 0:01:16]} Rxd4 {[%emt 0:00:56]} 29. Rxd4 {[%emt 0:00:26]} Bc1 {[%emt 0:02:01]} 30. Rd6 {[%emt 0:01:28]} Bxb2 {[%emt 0:00:22]} 31. Bd4 {[%emt 0:01:24]} Rc8 {[%emt 0:02:17]} 32. Rb6 {[%emt 0:00:35]} Bxc3 {[%emt 0:02:43]} 33. Rxb7+ {[%emt 0:00:08]} Kf8 {[%emt 0:00:33] normal} 0-1

[Event "GER-ch Youth U18 2019"]
[Site "Willingen"]
[Date "2019.06.09"]
[Round "2.12"]
[White "Wendler, David"]
[Black "Knoedler, Marcel"]
[Result "1-0"]
[ECO "B14"]
[WhiteElo "2166"]
[BlackElo "1633"]
[Annotator "NA"]
[PlyCount "54"]
[EventDate "2019.06.07"]
[EventType "swiss"]
[EventRounds "9"]
[EventCountry "GER"]
[SourceTitle "playchess.com"]
[Source "ChessBase"]
[SourceQuality "1"]
[TimeControl "40/5400+30:1800+30"]

1. e4 {[%emt 0:00:00]} c6 {[%emt 0:00:00]} 2. d4 {[%emt 0:00:00]} d5 {[%emt 0:00:00]} 3. exd5 {[%emt 0:00:00]} cxd5 {[%emt 0:00:00]} 4. c4 {[%emt 0:00:00]} Nf6 {[%emt 0:00:00]} 5. Nc3 {[%emt 0:00:05]} e6 {[%emt 0:00:00]} 6. Nf3 {[%emt 0:00:18]} Nc6 {[%emt 0:00:53]} 7. c5 {[%emt 0:05:05]} Ne4 {[%emt 0:08:08]} 8. Bb5 {[%emt 0:05:40]} Nxc3 {[%emt 0:06:50]} 9. bxc3 {[%emt 0:00:59]} Be7 {[%emt 0:02:14]} 10. O-O {[%emt 0:03:50]} O-O {[%emt 0:02:06]} 11. Bxc6 {[%emt 0:03:09]} bxc6 {[%emt 0:00:06]} 12. Qa4 {[%emt 0:00:45]} Bd7 {[%emt 0:11:22]} 13. Rb1 {[%emt 0:09:05]} Qc7 {[%emt 0:16:53]} 14. g3 {[%emt 0:05:12]} e5 {[%emt 0:11:07]} 15. Nxe5 {[%emt 0:05:34]} Bf5 {[%emt 0:04:25]} 16. Rb2 {[%emt 0:06:08]} Rfc8 {[%emt 0:06:13]} 17. Bf4 {[%emt 0:07:04]} g5 {[%emt 0:02:14]} 18. Nxf7 {[%emt 0:00:41]} gxf4 {[%emt 0:01:28]} 19. Nh6+ {[%emt 0:00:10]} Kh8 {[%emt 0:02:20]} 20. Nxf5 {[%emt 0:00:07]} Qd7 {[%emt 0:00:55]} 21. Re1 {[%emt 0:11:06]} Qxf5 {[%emt 0:02:50]} 22. Rxe7 {[%emt 0:00:06]} f3 {[%emt 0:01:35]} 23. Rbb7 {[%emt 0:04:16]} Rab8 {[%emt 0:03:51]} 24. Rxh7+ {[%emt 0:12:37]} Kg8 {[%emt 0:00:48]} 25. Rhg7+ {[%emt 0:00:07]} Kh8 {[%emt 0:00:48]} 26. Qd1 {[%emt 0:00:48]} Rxb7 {[%emt 0:02:18]} 27. Rxb7 {[%emt 0:00:06]} Re8 {[%emt 0:01:47] normal} 1-0

[Event "GER-ch Youth U18 2019"]
[Site "Willingen"]
[Date "2019.06.09"]
[Round "2.13"]
[White "Rockmann, Jan-Okke"]
[Black "Schnabel, Bennett"]
[Result "1-0"]
[ECO "B75"]
[WhiteElo "1816"]
[BlackElo "2125"]
[Annotator "NA"]
[PlyCount "61"]
[EventDate "2019.06.07"]
[EventType "swiss"]
[EventRounds "9"]
[EventCountry "GER"]
[SourceTitle "playchess.com"]
[Source "ChessBase"]
[SourceQuality "1"]
[TimeControl "40/5400+30:1800+30"]

1. e4 {[%emt 0:00:00]} c5 {[%emt 0:00:00]} 2. Nf3 {[%emt 0:00:00]} d6 {[%emt 0:00:00]} 3. d4 {[%emt 0:00:00]} cxd4 {[%emt 0:00:00]} 4. Nxd4 {[%emt 0:00:00]} Nf6 {[%emt 0:00:00]} 5. Nc3 {[%emt 0:00:00]} g6 6. Be3 {[%emt 0:00:26]} Bg7 {[%emt 0:00:10]} 7. f3 {[%emt 0:00:17]} a6 {[%emt 0:00:07]} 8. Qd2 {[%emt 0:00:11]} h5 {[%emt 0:00:06]} 9. Bc4 {[%emt 0:00:07]} Nbd7 {[%emt 0:00:09]} 10. O-O-O {[%emt 0:00:07]} b5 {[%emt 0:00:12]} 11. Bd5 {[%emt 0:00:14]} Nxd5 {[%emt 0:00:49]} 12. Nxd5 {[%emt 0:00:55]} Ne5 {[%emt 0:24:05]} 13. b3 {[%emt 0:00:44]} Bb7 {[%emt 0:03:15]} 14. Bg5 Bxd5 {[%emt 0:16:06]} 15. exd5 {[%emt 0:00:41]} Qc7 16. Rhe1 O-O {[%emt 0:07:46]} 17. f4 {[%emt 0:03:25]} Nc4 18. Qc3 Rfc8 {[%emt 0:07:22]} 19. bxc4 {[%emt 0:16:48]} Qb6 20. Qe3 {[%emt 0:07:19]} bxc4 {[%emt 0:03:43]} 21. Nc6 Rxc6 {[%emt 0:08:50]} 22. dxc6 {[%emt 0:00:41]} Qb4 {[%emt 0:00:16]} 23. Rd2 {[%emt 0:04:24]} d5 {[%emt 0:18:05]} 24. Kd1 {[%emt 0:00:38]} e6 {[%emt 0:06:04]} 25. Ke2 {[%emt 0:00:49]} Qb5 {[%emt 0:01:10]} 26. c7 e5 {[%emt 0:02:56]} 27. fxe5 {[%emt 0:01:40]} Rc8 {[%emt 0:01:43]} 28. Bd8 {[%emt 0:00:17]} c3+ {[%emt 0:00:06]} 29. Rd3 {[%emt 0:00:03]} d4 {[%emt 0:00:20]} 30. Qxd4 {[%emt 0:00:07]} Bxe5 {[%emt 0:00:06]} 31. Qd7 {[%emt 0:00:12] normal} 1-0

[Event "GER-ch Youth U18 2019"]
[Site "Willingen"]
[Date "2019.06.09"]
[Round "2.14"]
[White "Wong, Gengchun"]
[Black "Sureshkumar, Atchuthan"]
[Result "1-0"]
[ECO "C68"]
[WhiteElo "2144"]
[BlackElo "1502"]
[Annotator "NA"]
[PlyCount "23"]
[EventDate "2019.06.07"]
[EventType "swiss"]
[EventRounds "9"]
[EventCountry "GER"]
[SourceTitle "playchess.com"]
[Source "ChessBase"]
[SourceQuality "1"]
[TimeControl "40/5400+30:1800+30"]

1. e4 {[%emt 0:00:00]} e5 {[%emt 0:00:00]} 2. Nf3 {[%emt 0:00:00]} Nc6 {[%emt 0:00:00]} 3. Bb5 {[%emt 0:00:00]} a6 {[%emt 0:00:00]} 4. Bxc6 {[%emt 0:00:00]} dxc6 {[%emt 0:01:09]} 5. O-O {[%emt 0:00:00]} Bg4 6. h3 {[%emt 0:00:00]} h5 {[%emt 0:03:15]} 7. d3 {[%emt 0:00:59]} Qf6 {[%emt 0:04:26]} 8. Nbd2 {[%emt 0:03:40]} g5 {[%emt 0:01:49]} 9. b3 {[%emt 0:00:36]} Bxf3 {[%emt 0:00:07]} 10. Qxf3 {[%emt 0:00:06]} Qxf3 {[%emt 0:00:06]} 11. Nxf3 {[%emt 0:03:48]} f6 12. Be3 {normal} 1-0

[Event "GER-ch Youth U18 2019"]
[Site "Willingen"]
[Date "2019.06.10"]
[Round "3.2"]
[White "Kuznecovs, Nikita"]
[Black "Buckels, Valentin"]
[Result "1-0"]
[ECO "A20"]
[WhiteElo "2317"]
[BlackElo "2443"]
[Annotator "NA"]
[PlyCount "46"]
[EventDate "2019.06.07"]
[EventType "swiss"]
[EventRounds "9"]
[EventCountry "GER"]
[SourceTitle "playchess.com"]
[Source "ChessBase"]
[SourceQuality "1"]
[TimeControl "40/5400+30:1800+30"]

1. c4 {[%emt 0:00:00]} e5 {[%emt 0:00:45]} 2. Nf3 {[%emt 0:00:00]} Nc6 {[%emt 0:00:17]} 3. d4 {[%emt 0:00:00]} exd4 {[%emt 0:09:22]} 4. Nxd4 {[%emt 0:00:00]} g6 {[%emt 0:01:25]} 5. Nxc6 {[%emt 0:10:42]} bxc6 {[%emt 0:00:34]} 6. Bd2 {[%emt 0:00:08]} Bg7 {[%emt 0:03:05]} 7. Bc3 {[%emt 0:00:07]} Nf6 {[%emt 0:04:53]} 8. g3 {[%emt 0:07:19]} O-O {[%emt 0:01:33]} 9. Bg2 {[%emt 0:00:18]} Rb8 {[%emt 0:02:37]} 10. O-O {[%emt 0:04:10]} Re8 {[%emt 0:01:24]} 11. e3 {[%emt 0:05:16]} c5 {[%emt 0:01:59]} 12. Nd2 {[%emt 0:06:22]} d6 {[%emt 0:09:20]} 13. Qa4 {[%emt 0:05:37]} a6 {[%emt 0:06:36]} 14. Rac1 {[%emt 0:20:41]} Nd7 {[%emt 0:02:51]} 15. Qa3 {[%emt 0:05:33]} Ne5 {[%emt 0:01:21]} 16. Bxe5 {[%emt 0:17:31]} Bxe5 {[%emt 0:00:18]} 17. b3 {[%emt 0:00:08]} Rb6 {[%emt 0:07:23]} 18. Rcd1 {[%emt 0:05:01]} Bg4 {[%emt 0:02:31]} 19. Bf3 {[%emt 0:00:20]} Bd7 {[%emt 0:03:46]} 20. Ne4 {[%emt 0:02:27]} Qc8 {[%emt 0:01:29]} 21. Qa5 {[%emt 0:01:18]} Bh3 {[%emt 0:01:17]} 22. Bg2 {[%emt 0:01:17]} Bg4 {[%emt 0:03:33]} 23. Rc1 {[%emt 0:00:19]} h5 {[%emt 0:02:33] normal} 1-0

[Event "GER-ch Youth U18 2019"]
[Site "Willingen"]
[Date "2019.06.10"]
[Round "3.3"]
[White "Roseneck, Jonas"]
[Black "Ewert, Hannes"]
[Result "1-0"]
[ECO "C95"]
[WhiteElo "2403"]
[BlackElo "2268"]
[Annotator "NA"]
[PlyCount "50"]
[EventDate "2019.06.07"]
[EventType "swiss"]
[EventRounds "9"]
[EventCountry "GER"]
[SourceTitle "playchess.com"]
[Source "ChessBase"]
[SourceQuality "1"]
[TimeControl "40/5400+30:1800+30"]

1. e4 {[%emt 0:00:00]} e5 {[%emt 0:00:00]} 2. Nf3 {[%emt 0:00:00]} Nc6 {[%emt 0:00:00]} 3. Bb5 {[%emt 0:00:00]} a6 {[%emt 0:00:00]} 4. Ba4 {[%emt 0:00:00]} Nf6 {[%emt 0:00:00]} 5. O-O {[%emt 0:00:02]} Be7 {[%emt 0:00:00]} 6. Re1 {[%emt 0:00:25]} b5 {[%emt 0:00:19]} 7. Bb3 {[%emt 0:00:04]} d6 {[%emt 0:00:25]} 8. c3 {[%emt 0:00:08]} O-O {[%emt 0:00:17]} 9. h3 {[%emt 0:00:02]} Nb8 {[%emt 0:00:32]} 10. d4 {[%emt 0:00:05]} Nbd7 {[%emt 0:00:04]} 11. c4 {[%emt 0:00:09]} c6 {[%emt 0:00:49]} 12. Nc3 {[%emt 0:00:09]} b4 {[%emt 0:00:52]} 13. Ne2 {[%emt 0:00:04]} Nxe4 {[%emt 0:12:14]} 14. Qc2 {[%emt 0:00:05]} f5 {[%emt 0:02:22]} 15. c5+ {[%emt 0:00:09]} d5 {[%emt 0:00:14]} 16. Be3 {[%emt 0:00:04]} Qc7 {[%emt 0:40:03]} 17. Nxe5 {[%emt 0:27:43]} Nxe5 {[%emt 0:01:49]} 18. Bf4 {[%emt 0:00:17]} Bf6 {[%emt 0:02:15]} 19. f3 {[%emt 0:12:41]} Ng5 {[%emt 0:01:10]} 20. dxe5 {[%emt 0:00:30]} Ne6 {[%emt 0:00:17]} 21. exf6 {[%emt 0:05:12]} Nxf4 {[%emt 0:00:06]} 22. fxg7 {[%emt 0:12:14]} Nxe2+ {[%emt 0:04:51]} 23. Rxe2 {[%emt 0:03:07]} Qxg7 {[%emt 0:03:45]} 24. Qd2 {[%emt 0:02:56]} Rb8 {[%emt 0:07:39]} 25. Rae1 {[%emt 0:09:23]} Rb7 {[%emt 0:07:08] normal} 1-0

[Event "GER-ch Youth U18 2019"]
[Site "Willingen"]
[Date "2019.06.10"]
[Round "3.4"]
[White "Faerber, David"]
[Black "Maetzkow, Maximilian Paul"]
[Result "0-1"]
[ECO "C12"]
[WhiteElo "2293"]
[BlackElo "2338"]
[Annotator "ChessBase"]
[PlyCount "68"]
[EventDate "2019.06.07"]
[EventType "swiss"]
[EventRounds "9"]
[EventCountry "GER"]
[SourceTitle "playchess.com"]
[Source "ChessBase"]
[SourceQuality "1"]
[TimeControl "40/5400+30:1800+30"]

1. e4 {[%emt 0:00:03]} e6 {[%emt 0:00:00]} 2. d4 {[%emt 0:00:17]} d5 {[%emt 0:00:00]} 3. Nc3 {[%emt 0:00:15]} Nf6 {[%emt 0:00:13]} 4. Bg5 {[%emt 0:00:25]} Bb4 {[%emt 0:00:55]} 5. e5 {[%emt 0:00:23]} h6 {[%emt 0:00:17]} 6. Bd2 {[%emt 0:00:22]} Bxc3 {[%emt 0:00:54]} 7. bxc3 {[%emt 0:00:10]} Ne4 {[%emt 0:00:26]} 8. Qg4 {[%emt 0:00:10]} Kf8 {[%emt 0:01:06]} 9. Bd3 {[%emt 0:00:25]} Nxd2 {[%emt 0:08:18]} 10. Kxd2 {[%emt 0:00:23]} c5 {[%emt 0:01:39]} 11. h4 {[%emt 0:01:16]} Nc6 {[%emt 0:32:46]} 12. Rh3 {[%emt 0:00:22]} c4 {[%emt 0:01:03]} 13. Bf1 {[%emt 0:00:15]} b5 {[%emt 0:06:09]} 14. a3 {[%emt 0:10:40]} a5 {[%emt 0:03:34]} 15. Ne2 {[%emt 0:00:34]} Rb8 {[%emt 0:21:06]} 16. Rf3 {[%emt 0:10:02]} Rg8 {[%emt 0:02:08]} 17. Nf4 {[%emt 0:24:12]} Ke7 {[%emt 0:04:05]} 18. Nh5 {[%emt 0:01:21]} Qf8 {[%emt 0:00:43]} 19. Rg3 {[%emt 0:03:05]} Ba6 {[%emt 0:03:20]} 20. f4 {[%emt 0:10:14]} Kd7 {[%emt 0:00:49]} 21. f5 {[%emt 0:07:57]} Kc7 {[%emt 0:00:26]} 22. fxe6 {[%emt 0:06:38]} Bc8 {[%emt 0:00:20]} 23. Nxg7 {[%emt 0:02:33]} Bxe6 {[%emt 0:00:19]} 24. Nxe6+ {[%emt 0:01:45]} fxe6 {[%emt 0:00:15]} 25. Qf3 {[%emt 0:00:28]} Rxg3 {[%emt 0:01:22]} 26. Qxg3 {[%emt 0:00:10]} b4 {[%emt 0:00:22]} 27. Qf3 {[%emt 0:05:06]} bxc3+ {[%emt 0:03:52]} 28. Kxc3 {[%emt 0:02:09]} Qxf3+ {[%emt 0:00:46]} 29. gxf3 {[%emt 0:00:06]} Rf8 {[%emt 0:00:02]} 30. Be2 {[%emt 0:03:24]} Rf4 {[%emt 0:00:04]} 31. Rd1 {[%emt 0:03:56]} Rxh4 {[%emt 0:00:06]} 32. Bf1 {[%emt 0:00:08]} Rf4 {[%emt 0:00:24]} 33. Bg2 {[%emt 0:00:06]} h5 {[%emt 0:00:15]} 34. Rh1 {[%emt 0:01:36]} h4 {[%emt 0:01:24] normal} 0-1

[Event "GER-ch Youth U18 2019"]
[Site "Willingen"]
[Date "2019.06.10"]
[Round "3.5"]
[White "Parvanyan, Ashot"]
[Black "Arndt, Magnus"]
[Result "1-0"]
[ECO "E06"]
[WhiteElo "2421"]
[BlackElo "2186"]
[Annotator "NA"]
[PlyCount "33"]
[EventDate "2019.06.07"]
[EventType "swiss"]
[EventRounds "9"]
[EventCountry "GER"]
[SourceTitle "playchess.com"]
[Source "ChessBase"]
[SourceQuality "1"]
[TimeControl "40/5400+30:1800+30"]

1. Nf3 {[%emt 0:00:00]} Nf6 {[%emt 0:00:00]} 2. c4 {[%emt 0:00:39]} e6 {[%emt 0:00:00]} 3. g3 {[%emt 0:00:15]} d5 {[%emt 0:00:00]} 4. d4 {[%emt 0:00:10]} Be7 {[%emt 0:00:00]} 5. Bg2 {[%emt 0:00:06]} O-O {[%emt 0:00:04]} 6. O-O {[%emt 0:00:37]} dxc4 {[%emt 0:00:15]} 7. Qc2 {[%emt 0:00:12]} b6 {[%emt 0:01:13]} 8. Na3 {[%emt 0:02:43]} Bb7 {[%emt 0:03:16]} 9. Nxc4 {[%emt 0:03:04]} Nbd7 {[%emt 0:02:12]} 10. Bf4 {[%emt 0:02:24]} Be4 {[%emt 0:08:43]} 11. Qb3 {[%emt 0:04:25]} Nd5 {[%emt 0:12:11]} 12. Bc1 {[%emt 0:10:21]} N5f6 {[%emt 0:10:01]} 13. Rd1 {[%emt 0:03:11]} Qc8 {[%emt 0:05:03]} 14. Bd2 {[%emt 0:07:13]} Qb7 {[%emt 0:04:23]} 15. Rac1 {[%emt 0:01:44]} c5 {[%emt 0:08:07]} 16. Bf4 {[%emt 0:12:08]} Bd5 {[%emt 0:05:48]} 17. Ne1 {[%emt 0:07:03] normal} 1-0

[Event "GER-ch Youth U18 2019"]
[Site "Willingen"]
[Date "2019.06.10"]
[Round "3.6"]
[White "Goldbeck, Lars"]
[Black "Muckle, Julius"]
[Result "0-1"]
[ECO "A11"]
[WhiteElo "2199"]
[BlackElo "2370"]
[Annotator "NA"]
[PlyCount "38"]
[EventDate "2019.06.07"]
[EventType "swiss"]
[EventRounds "9"]
[EventCountry "GER"]
[SourceTitle "playchess.com"]
[Source "ChessBase"]
[SourceQuality "1"]
[TimeControl "40/5400+30:1800+30"]

1. c4 {[%emt 0:00:00]} c6 {[%emt 0:00:00]} 2. Nf3 {[%emt 0:00:00]} d5 {[%emt 0:00:00]} 3. g3 {[%emt 0:00:00]} Nf6 {[%emt 0:00:00]} 4. Bg2 {[%emt 0:00:00]} Bf5 {[%emt 0:00:17]} 5. O-O {[%emt 0:00:15]} e6 {[%emt 0:00:39]} 6. cxd5 {[%emt 0:00:07]} cxd5 {[%emt 0:02:06]} 7. Qb3 {[%emt 0:00:06]} Qb6 {[%emt 0:00:38]} 8. Qxb6 {[%emt 0:00:07]} axb6 {[%emt 0:00:06]} 9. Nc3 {[%emt 0:00:12]} Nc6 {[%emt 0:00:21]} 10. d3 {[%emt 0:00:45]} e5 {[%emt 0:20:12]} 11. Bg5 {[%emt 0:08:39]} Be6 {[%emt 0:03:33]} 12. Nh4 {[%emt 0:13:54]} d4 {[%emt 0:16:10]} 13. Nb5 {[%emt 0:00:50]} Kd7 {[%emt 0:08:41]} 14. f4 {[%emt 0:04:30]} Ra5 {[%emt 0:08:16]} 15. a4 {[%emt 0:01:51]} h6 {[%emt 0:00:25]} 16. Bxf6 {[%emt 0:01:01]} gxf6 {[%emt 0:00:01]} 17. Nf3 {[%emt 0:11:46]} Bb4 {[%emt 0:02:19]} 18. Rfc1 {[%emt 0:04:55]} exf4 {[%emt 0:11:15]} 19. gxf4 {[%emt 0:00:51]} Rha8 {[%emt 0:00:10] normal} 0-1

[Event "GER-ch Youth U18 2019"]
[Site "Willingen"]
[Date "2019.06.10"]
[Round "3.7"]
[White "Wendler, David"]
[Black "Schmider, Niklas"]
[Result "0-1"]
[ECO "B22"]
[WhiteElo "2166"]
[BlackElo "2300"]
[Annotator "ChessBase"]
[PlyCount "56"]
[EventDate "2019.06.07"]
[EventType "swiss"]
[EventRounds "9"]
[EventCountry "GER"]
[SourceTitle "playchess.com"]
[Source "ChessBase"]
[SourceQuality "1"]
[TimeControl "40/5400+30:1800+30"]

1. e4 {[%emt 0:00:00]} c5 {[%emt 0:00:00]} 2. c3 {[%emt 0:00:26]} Nf6 {[%emt 0:00:00]} 3. e5 {[%emt 0:00:09]} Nd5 {[%emt 0:00:00]} 4. d4 {[%emt 0:00:47]} cxd4 {[%emt 0:00:00]} 5. Nf3 {[%emt 0:00:14]} Nc6 {[%emt 0:00:09]} 6. Bc4 {[%emt 0:00:22]} Nb6 {[%emt 0:00:08]} 7. Bb3 {[%emt 0:00:04]} d5 {[%emt 0:00:05]} 8. exd6 {[%emt 0:00:11]} Qxd6 {[%emt 0:00:09]} 9. O-O {[%emt 0:00:23]} Be6 {[%emt 0:03:05]} 10. Na3 {[%emt 0:00:28]} dxc3 {[%emt 0:02:06]} 11. Bxe6 {[%emt 0:01:15]} Qxd1 {[%emt 0:03:36]} 12. Rxd1 {[%emt 0:00:57]} fxe6 {[%emt 0:00:24]} 13. bxc3 {[%emt 0:00:30]} g6 {[%emt 0:05:58]} 14. Ng5 {[%emt 0:04:04]} e5 {[%emt 0:05:19]} 15. Rb1 Rc8 {[%emt 0:12:23]} 16. Ne4 {[%emt 0:28:04]} Bg7 {[%emt 0:15:57]} 17. Be3 {[%emt 0:04:11]} O-O {[%emt 0:00:11]} 18. Bxb6 {[%emt 0:04:47]} axb6 {[%emt 0:00:08]} 19. Nc4 {[%emt 0:01:55]} Ra8 {[%emt 0:01:23]} 20. Nxb6 {[%emt 0:06:54]} Rxa2 {[%emt 0:08:34]} 21. Nd7 {[%emt 0:01:31]} Rd8 {[%emt 0:06:52]} 22. Rxb7 {[%emt 0:01:47]} Re2 {[%emt 0:00:57]} 23. f3 {[%emt 0:06:05]} Ra8 {[%emt 0:17:57]} 24. Rc7 {[%emt 0:16:34]} Bh6 {[%emt 0:03:16]} 25. Kf1 {[%emt 0:11:59]} Raa2 {[%emt 0:01:12]} 26. Ndf6+ {[%emt 0:02:55]} Kf7 {[%emt 0:05:45]} 27. Ng4 {[%emt 0:02:18]} Bf4 {[%emt 0:00:39]} 28. Rxc6 {[%emt 0:00:26]} h5 {[%emt 0:00:25] normal} 0-1

[Event "GER-ch Youth U18 2019"]
[Site "Willingen"]
[Date "2019.06.10"]
[Round "3.8"]
[White "Wong, Gengchun"]
[Black "Browning, Alex"]
[Result "1/2-1/2"]
[ECO "B96"]
[WhiteElo "2144"]
[BlackElo "2319"]
[Annotator "NA"]
[PlyCount "48"]
[EventDate "2019.06.07"]
[EventType "swiss"]
[EventRounds "9"]
[EventCountry "GER"]
[SourceTitle "playchess.com"]
[Source "ChessBase"]
[SourceQuality "1"]
[TimeControl "40/5400+30:1800+30"]

1. e4 {[%emt 0:00:00]} c5 {[%emt 0:00:00]} 2. Nf3 {[%emt 0:00:00]} d6 {[%emt 0:00:00]} 3. d4 {[%emt 0:00:00]} cxd4 {[%emt 0:00:00]} 4. Nxd4 {[%emt 0:00:00]} Nf6 {[%emt 0:00:01]} 5. Nc3 {[%emt 0:00:00]} a6 {[%emt 0:00:07]} 6. Bg5 {[%emt 0:00:05]} e6 {[%emt 0:00:10]} 7. f4 {[%emt 0:00:08]} h6 {[%emt 0:00:05]} 8. Bh4 {[%emt 0:00:09]} Qb6 {[%emt 0:00:07]} 9. Qd3 {[%emt 0:01:02]} Qxb2 {[%emt 0:04:27]} 10. Rb1 {[%emt 0:00:35]} Qa3 {[%emt 0:00:08]} 11. f5 {[%emt 0:00:28]} Be7 {[%emt 0:15:44]} 12. fxe6 {[%emt 0:00:09]} fxe6 {[%emt 0:02:44]} 13. Be2 {[%emt 0:00:58]} O-O {[%emt 0:11:04]} 14. O-O {[%emt 0:01:24]} Nc6 {[%emt 0:09:39]} 15. Nxc6 {[%emt 0:02:24]} bxc6 {[%emt 0:05:11]} 16. Nd5 {[%emt 0:01:46]} Qxd3 {[%emt 0:02:16]} 17. Nxe7+ {[%emt 0:00:04]} Kf7 {[%emt 0:00:08]} 18. cxd3 {[%emt 0:00:03]} Kxe7 {[%emt 0:00:20]} 19. e5 {[%emt 0:01:34]} dxe5 {[%emt 0:00:51]} 20. Bf3 {[%emt 0:00:34]} Bd7 {[%emt 0:12:08]} 21. Bg3 {[%emt 0:01:30]} Rab8 {[%emt 0:05:05]} 22. Bxe5 {[%emt 0:02:01]} Rb5 {[%emt 0:03:27]} 23. Rbe1 {[%emt 0:02:45]} Rc8 {[%emt 0:02:10]} 24. d4 {[%emt 0:13:22]} Be8 {[%emt 0:06:31] normal} 1/2-1/2

[Event "GER-ch Youth U18 2019"]
[Site "Willingen"]
[Date "2019.06.10"]
[Round "3.9"]
[White "Vuckovic, Zarko"]
[Black "Rockmann, Jan-Okke"]
[Result "1/2-1/2"]
[ECO "B22"]
[WhiteElo "2132"]
[BlackElo "1816"]
[Annotator "NA"]
[PlyCount "85"]
[EventDate "2019.06.07"]
[EventType "swiss"]
[EventRounds "9"]
[EventCountry "GER"]
[SourceTitle "playchess.com"]
[Source "ChessBase"]
[SourceQuality "1"]
[TimeControl "40/5400+30:1800+30"]

1. e4 {[%emt 0:00:00]} c5 {[%emt 0:00:00]} 2. c3 {[%emt 0:00:00]} d5 {[%emt 0:00:08]} 3. exd5 {[%emt 0:00:00]} Qxd5 {[%emt 0:00:13]} 4. d4 {[%emt 0:00:00]} Nc6 {[%emt 0:00:53]} 5. Nf3 {[%emt 0:00:02]} Bg4 {[%emt 0:00:24]} 6. Be2 {[%emt 0:00:04]} Rd8 {[%emt 0:00:22]} 7. c4 {[%emt 0:02:57]} Qf5 {[%emt 0:00:16]} 8. d5 {[%emt 0:02:16]} Bxf3 {[%emt 0:00:36]} 9. Bxf3 {[%emt 0:00:02]} Nd4 {[%emt 0:00:12]} 10. Bg4 {[%emt 0:00:31]} Qe4+ {[%emt 0:01:06]} 11. Kf1 {[%emt 0:00:37]} Nf6 {[%emt 0:03:40]} 12. Bf3 {[%emt 0:01:34]} Nxf3 {[%emt 0:00:40]} 13. gxf3 {[%emt 0:00:19]} Qxc4+ {[%emt 0:00:05]} 14. Kg2 {[%emt 0:00:03]} Nxd5 {[%emt 0:00:30]} 15. Qb3 {[%emt 0:00:10]} Qxb3 {[%emt 0:00:38]} 16. axb3 {[%emt 0:00:01]} a6 {[%emt 0:00:07]} 17. Nc3 {[%emt 0:01:04]} e6 {[%emt 0:00:19]} 18. Ne4 {[%emt 0:06:49]} Be7 {[%emt 0:00:17]} 19. Bd2 {[%emt 0:03:56]} f5 {[%emt 0:04:49]} 20. Ng3 {[%emt 0:00:20]} Kf7 {[%emt 0:00:37]} 21. Rhc1 {[%emt 0:02:15]} Rc8 {[%emt 0:00:38]} 22. Kf1 {[%emt 0:00:36]} Rhd8 {[%emt 0:00:39]} 23. Ke2 {[%emt 0:00:18]} Bf6 {[%emt 0:00:24]} 24. Rc2 {[%emt 0:00:22]} Rd6 {[%emt 0:01:37]} 25. Nf1 {[%emt 0:01:34]} Rdc6 {[%emt 0:02:21]} 26. Ne3 {[%emt 0:01:26]} Nxe3 {[%emt 0:00:51]} 27. fxe3 {[%emt 0:01:00]} c4 {[%emt 0:00:08]} 28. b4 {[%emt 0:00:47]} c3 {[%emt 0:00:16]} 29. bxc3 {[%emt 0:00:05]} Bxc3 {[%emt 0:00:04]} 30. Raa2 {[%emt 0:00:24]} Be5 {[%emt 0:00:29]} 31. Rxc6 {[%emt 0:00:12]} Rxc6 {[%emt 0:00:09]} 32. h3 {[%emt 0:01:34]} Bc3 {[%emt 0:02:21]} 33. b5 {[%emt 0:02:39]} axb5 {[%emt 0:01:05]} 34. Ra7 {[%emt 0:00:02]} b4 {[%emt 0:00:48]} 35. Rxb7+ {[%emt 0:00:11]} Kf6 {[%emt 0:00:37]} 36. f4 {[%emt 0:01:27]} Kg6 {[%emt 0:00:29]} 37. Be1 {[%emt 0:01:22]} Kh5 {[%emt 0:02:14]} 38. Rb5 {[%emt 0:01:17]} Bxe1 {[%emt 0:00:41]} 39. Kxe1 {[%emt 0:00:01]} Kh4 {[%emt 0:00:19]} 40. Rxb4 {[%emt 0:00:15]} Rc7 {[%emt 0:01:05]} 41. Kf2 {[%emt 0:30:11]} Kxh3 {[%emt 0:30:13]} 42. Kf3 {[%emt 0:00:07]} Kh4 {[%emt 0:02:27]} 43. Rb6 {[%emt 0:00:24] normal} 1/2-1/2